fUST/lending_fUST_20260103
["ID","MTS","AMOUNT","RATE_DAILY","PERIOD"]
[400365864,1767443441335,-7171.38969637,0.00016438,2]
[400365865,1767443441345,-7171.38969637,0.00016438,2]
[400365866,1767443441356,-7171.38969637,0.00016438,2]
[400365867,1767443441366,-7171.38969637,0.00016438,2]
[400365868,1767443441376,-7171.38969637,0.00016438,2]
[400365869,1767443441386,-7171.38969637,0.00016438,2]
[400365870,1767443441396,-7171.38969637,0.00016438,2]
[400365871,1767443441406,-7171.38969637,0.00016438,2]
[400365872,1767443441416,-7171.38969637,0.00016438,2]
[400365873,1767443441426,-7171.38969637,0.00016438,2]
[400365874,1767443441436,-7171.38969637,0.00016438,2]
[400365875,1767443441446,-7171.38969637,0.00016438,2]
[400365876,1767443441456,-7171.38969637,0.00016438,2]
[400365877,1767443441467,-7171.38969637,0.00016438,2]
[400365878,1767443441476,-7171.38969637,0.00016438,2]
[400365879,1767443441486,-7171.38969637,0.00016438,2]
[400365880,1767443441496,-7171.38969637,0.00016438,2]
[400365881,1767443441506,-7171.38969637,0.00016438,2]
[400365882,1767443441516,-7171.38969637,0.00016438,2]
[400365883,1767443441526,-7171.38969637,0.00016438,2]
[400365884,1767443441537,-7171.38969637,0.00016438,2]
[400365885,1767443441547,-7171.38969637,0.00016438,2]
[400365886,1767443441557,-7171.38969637,0.00016438,2]
[400365887,1767443441567,-7171.38969637,0.00016438,2]
[400365888,1767443441577,-7171.38969637,0.00016438,2]
[400365889,1767443441587,-7171.38969637,0.00016438,2]
[400365890,1767443441598,-7171.38969637,0.00016438,2]
[400365891,1767443441609,-7171.38969637,0.00016438,2]
[400365892,1767443441620,-7171.38969637,0.00016438,2]
[400365893,1767443441630,-7171.38969637,0.00016438,2]
[400365894,1767443441640,-7171.38969637,0.00016438,2]
[400365895,1767443441649,-7059.33673237,0.00016438,2]
[400365896,1767443441659,-7059.33673237,0.00016438,2]
[400365897,1767443441674,-7059.33673237,0.00016438,2]
[400365898,1767443441683,-7059.33673237,0.00016438,2]
[400365899,1767443441693,-7059.33673237,0.00016438,2]
[400365900,1767443441703,-7059.33673237,0.00016438,2]
[400365901,1767443441714,-7059.33673237,0.00016438,2]
[400365902,1767443441725,-7059.33673237,0.00016438,2]
[400365903,1767443441736,-7059.33673237,0.00016438,2]
[400365904,1767443441746,-7059.33673237,0.00016438,2]
[400365905,1767443441756,-7059.33673237,0.00016438,2]
[400365906,1767443441766,-7059.33673237,0.00016438,2]
[400365907,1767443441776,-7059.33673237,0.00016438,2]
[400365908,1767443441787,-7059.33673237,0.00016438,2]
[400365909,1767443441796,-7059.33673237,0.00016438,2]
[400365910,1767443441806,-7059.33673237,0.00016438,2]
[400365911,1767443441816,-7059.33673237,0.00016438,2]
[400365912,1767443441826,-7059.33673237,0.00016438,2]
[400365913,1767443441836,-7059.33673237,0.00016438,2]
[400365914,1767443441845,-7059.33673237,0.00016438,2]
[400365915,1767443441856,-7059.33673237,0.00016438,2]
[400365916,1767443441877,-7059.33673237,0.00016438,2]
[400365917,1767443441887,-7059.33673237,0.00016438,2]
[400365918,1767443441897,-7059.33673237,0.00016438,2]
[400365919,1767443441907,-7059.33673237,0.00016438,2]
[400365920,1767443441917,-7059.33673237,0.00016438,2]
[400365921,1767443441926,-7059.33673237,0.00016438,2]
[400365922,1767443441936,-7059.33673237,0.00016438,2]
[400365923,1767443441947,-7059.33673237,0.00016438,2]
[400365924,1767443441957,-7059.33673237,0.00016438,2]
[400365925,1767443441967,-7059.33673237,0.00016438,2]
[400365926,1767443441976,-7059.3367323,0.00016438,2]
[400365927,1767443441986,-1398.92138863,0.00016438,2]
[400365928,1767443441996,-972.294013,0.00016438,2]
[400365929,1767443442005,-972.294013,0.00016438,2]
[400365930,1767443442017,-972.294013,0.00016438,2]
[400365931,1767443442035,-972.294013,0.00016438,2]
[400365932,1767443442045,-972.294013,0.00016438,2]
[400365933,1767443442055,-972.294013,0.00016438,2]
[400365934,1767443442065,-972.294013,0.00016438,2]
[400365935,1767443442075,-972.294013,0.00016438,2]
[400365936,1767443442085,-972.294013,0.00016438,2]
[400365937,1767443442095,-972.294013,0.00016438,2]
[400365938,1767443442107,-972.294013,0.00016438,2]
[400365939,1767443442117,-972.294013,0.00016438,2]
[400365940,1767443442127,-151.0,0.00016438,2]
[400365941,1767443442137,-151.0,0.00016438,2]
[400365942,1767443442150,-792.7,0.00016438,2]
[400365943,1767443442160,-151.0,0.00016438,2]
[400365944,1767443442171,-154.76883189,0.00016438,2]
[400365945,1767443442182,-151.0,0.00016438,2]
[400365946,1767443442196,-151.0,0.00016438,2]
[400365947,1767443442207,-151.0,0.00016438,2]
[400365948,1767443442217,-151.0,0.00016438,2]
[400365949,1767443442227,-151.0,0.00016438,2]
[400365950,1767443442238,-151.0,0.00016438,2]
[400365951,1767443442248,-164.0102757,0.00016438,2]
[400365952,1767443442258,-151.0,0.00016438,2]
[400365954,1767443442268,-151.0,0.00016438,2]
[400365956,1767443442278,-151.0,0.00016438,2]
[400365958,1767443442288,-151.0,0.00016438,2]
[400365959,1767443442298,-3000.0,0.00016438,2]
[400365960,1767443442309,-152.0,0.00016438,2]
[400365961,1767443442319,-259.79445274,0.00016438,2]
[400365962,1767443442328,-200.0,0.00016473,2]
[400365963,1767443442338,-158.06458157,0.00016548,3]
[400365964,1767443442348,-520.81,0.000167,2]
[400365965,1767443442359,-792.7,0.00016944,2]
[400365966,1767443442369,-3500.0,0.00016986,2]
[400365967,1767443442378,-520.81,0.00017,2]
[400365968,1767443442388,-200.0,0.00017096,3]
[400365969,1767443442398,-2853.22502881,0.00017289,2]
[400365970,1767443442409,-520.81,0.000173,2]
[400365971,1767443442419,-792.7,0.00017449,2]
[400365972,1767443442557,-630.228,0.00017518,2]
[400365973,1767443442576,-1422.827,0.00017518,2]
[400365974,1767443442586,-2176.266,0.00017518,2]
[400365975,1767443442596,-151.0,0.00017534,2]
[400365976,1767443442607,-151.0,0.00017534,2]
[400365977,1767443442617,-151.0,0.00017534,2]
[400365978,1767443442627,-151.0,0.00017534,2]
[400365979,1767443442636,-4000.0,0.00017534,2]
[400365980,1767443442646,-1539.11597168,0.0001764,2]
[400365981,1767443442656,-520.81,0.000177,2]
[400365982,1767443442666,-1777.63164565,0.00017742,2]
[400365983,1767443442676,-5086.3174904,0.00017754,2]
[400365984,1767443442686,-151.0,0.000178,2]
[400365985,1767443442697,-151.0,0.000178,2]
[400365986,1767443442717,-972.294013,0.000178,2]
[400365987,1767443442728,-972.294013,0.000178,2]
[400365988,1767443442738,-972.294013,0.000178,2]
[400365989,1767443442748,-972.294013,0.000178,2]
[400365990,1767443442757,-151.0,0.000178,2]
[400365991,1767443442767,-151.0,0.000178,2]
[400365992,1767443442777,-151.0,0.000178,2]
[400365993,1767443442787,-151.0,0.000178,2]
[400365994,1767443442797,-178571.44,0.000178,3]
[400365995,1767443442807,-400.0,0.00017842,2]
[400365996,1767443442818,-792.7,0.00017955,2]
[400365997,1767443442828,-102848.76764442,0.00018,2]
[400365998,1767443442838,-55888.194218,0.00018,5]
[400365999,1767443442847,-155.0,0.00018,30]
[400366000,1767443442857,-59538.44520633,0.00018,2]
[400366001,1767443442869,-29984.44911942,0.00018,2]
[400366002,1767443442879,-1000.0,0.00018,2]
[400366003,1767443442888,-1000.0,0.00018,2]
[400366004,1767443442899,-1000.0,0.00018,2]
[400366005,1767443442909,-1000.0,0.00018,2]
[400366006,1767443442918,-1000.0,0.00018,2]
[400366007,1767443442928,-1000.0,0.00018,2]
[400366008,1767443442937,-1000.0,0.00018,2]
[400366009,1767443442947,-1000.0,0.00018,2]
[400366010,1767443442957,-1000.0,0.00018,2]
[400366011,1767443442967,-1000.0,0.00018,2]
[400366012,1767443442978,-151.0,0.00018,2]
[400366013,1767443442988,-189.657011,0.00018,2]
[400366014,1767443442998,-972.294013,0.00018,2]
[400366016,1767443443008,-972.294013,0.00018,2]
[400366018,1767443443018,-972.294013,0.00018,2]
[400366019,1767443443028,-972.294021,0.00018,2]
[400366020,1767443443038,-151.0,0.00018,2]
[400366021,1767443443048,-151.0,0.00018,2]
[400366022,1767443443059,-151.0,0.00018,2]
[400366024,1767443443068,-153.207208,0.00018,2]
[400366025,1767443443078,-500.0,0.00018,5]
[400366026,1767443443088,-500.0,0.00018,2]
[400366027,1767443443099,-520.81,0.00018,2]
[400366028,1767443443112,-4500.0,0.00018082,2]
[400366029,1767443443123,-202.0,0.00018192,3]
[400366030,1767443443132,-513.3934886,0.0001831,2]
[400366031,1767443443144,-600.0,0.00018359,2]
[400366032,1767443443154,-520.81,0.000184,2]
[400366033,1767443443164,-792.7,0.00018461,2]
[400366034,1767443443174,-462.094743,0.00018493,2]
[400366035,1767443443199,-16856.74294802,0.00018624,2]
[400366036,1767443443209,-3529.03128602,0.00018627,2]
[400366037,1767443443220,-2717.82865763,0.0001863,2]
[400366038,1767443443231,-168.0,0.00018652,2]
[400366039,1767443443241,-520.81,0.000187,2]
[400366040,1767443443252,-587.46816348,0.00018784,5]
[400366041,1767443443263,-168.0,0.00018796,2]
[400366042,1767443443273,-21865.05226588,0.000189,2]
[400366043,1767443443284,-303.08788973,0.000189,2]
[400366044,1767443443294,-303.0848583,0.000189,2]
[400366045,1767443443306,-792.7,0.00018966,2]
[400366046,1767443443316,-1000.0,0.00019,19]
[400366047,1767443443327,-19462.93635568,0.00019,2]
[400366048,1767443443337,-876.71188476,0.00019,2]
[400366049,1767443443347,-168.0,0.00019015,2]
[400366050,1767443443358,-303.08788973,0.00019089,2]
[400366051,1767443443369,-303.0848583,0.00019089,2]
[400366052,1767443443379,-152.42,0.00019119,2]
[400366053,1767443443389,-587.8496,0.00019178,2]
[400366054,1767443443400,-881.7745,0.00019178,2]
[400366055,1767443443412,-881.7745,0.00019178,2]
[400366056,1767443443423,-881.7745,0.00019178,2]
[400366057,1767443443433,-881.7745,0.00019178,2]
[400366058,1767443443443,-881.7745,0.00019178,2]
[400366059,1767443443454,-881.7745,0.00019178,2]
[400366060,1767443443465,-881.7745,0.00019178,2]
[400366061,1767443443475,-881.7745,0.00019178,2]
[400366062,1767443443485,-881.7745,0.00019178,2]
[400366063,1767443443496,-881.7745,0.00019178,2]
[400366064,1767443443506,-881.7745,0.00019178,2]
[400366065,1767443443518,-881.7745,0.00019178,2]
[400366066,1767443443528,-881.7745,0.00019178,2]
[400366067,1767443443538,-881.7745,0.00019178,2]
[400366068,1767443443548,-881.7745,0.00019178,2]
[400366069,1767443443558,-881.7745,0.00019178,2]
[400366070,1767443443568,-881.7745,0.00019178,2]
[400366071,1767443443578,-151.0,0.00019178,2]
[400366072,1767443443588,-151.0,0.00019178,2]
[400366073,1767443443599,-151.0,0.00019178,2]
[400366074,1767443443609,-151.0,0.00019178,2]
[400366075,1767443443620,-151.0,0.00019178,2]
[400366076,1767443443630,-151.0,0.00019178,2]
[400366077,1767443443641,-151.0,0.00019178,2]
[400366078,1767443443652,-151.0,0.00019178,2]
[400366079,1767443443662,-151.0,0.00019178,2]
[400366080,1767443443671,-151.0,0.00019178,2]
[400366081,1767443443682,-151.0,0.00019178,2]
[400366082,1767443443697,-151.0,0.00019178,2]
[400366083,1767443443708,-151.0,0.00019178,2]
[400366084,1767443443719,-151.0,0.00019178,2]
[400366085,1767443443729,-151.0,0.00019178,2]
[400366086,1767443443741,-235.000033,0.00019178,2]
[400366087,1767443443751,-354.0,0.0001919,2]
[400366088,1767443443762,-167.67,0.000192,2]
[400366089,1767443443773,-250.16,0.000192,2]
[400366090,1767443443783,-44933.71,0.000192,2]
[400366091,1767443443794,-2715.16,0.000192,2]
[400366092,1767443443804,-253.93,0.000192,2]
[400366093,1767443443814,-151.0,0.000192,2]
[400366094,1767443443825,-279.41786474,0.00019212,2]
[400366095,1767443443836,-303.08788973,0.00019278,2]
[400366096,1767443443847,-303.0848583,0.00019278,2]
[400366097,1767443443858,-204.0,0.00019288,3]
[400366098,1767443443869,-300.0,0.00019315,2]
[400366099,1767443443879,-442.0,0.00019347,2]
[400366100,1767443443889,-168.0,0.00019414,2]
[400366101,1767443443900,-1588.86725822,0.00019452,2]
[400366102,1767443443910,-450.0,0.00019452,2]
[400366103,1767443443920,-303.08788973,0.00019467,2]
[400366104,1767443443931,-303.0848583,0.00019467,2]
[400366105,1767443443943,-792.7,0.00019472,2]
[400366106,1767443443953,-151.0,0.000195,2]
[400366107,1767443443963,-151.0,0.000195,2]
[400366108,1767443443974,-151.0,0.000195,2]
[400366110,1767443443984,-550.0,0.00019573,2]
[400366111,1767443443994,-600.0,0.00019589,2]
[400366112,1767443444005,-264.82787637,0.00019599,30]
[400366113,1767443444016,-303.08788973,0.00019656,2]
[400366114,1767443444026,-303.0848583,0.00019656,2]
[400366115,1767443444036,-71428.56,0.000197,3]
[400366116,1767443444047,-168.0,0.00019702,2]
[400366117,1767443444057,-707.74183356,0.00019726,2]
[400366118,1767443444068,-264.82787637,0.00019745,30]
[400366119,1767443444078,-1005.776843,0.0001978,5]
[400366120,1767443444088,-1000.0,0.000198,5]
[400366122,1767443444098,-1000.0,0.0001982,5]
[400366124,1767443444111,-1000.0,0.0001984,5]
[400366125,1767443444120,-454.63183459,0.00019845,4]
[400366126,1767443444130,-454.62728746,0.00019845,4]
[400366128,1767443444140,-1000.0,0.0001986,5]
[400366130,1767443444151,-1000.0,0.0001988,5]
[400366132,1767443444161,-264.82787637,0.00019892,30]
[400366134,1767443444171,-10000.0,0.000199,2]
[400366135,1767443444182,-1000.0,0.000199,5]
[400366136,1767443444192,-1000.0,0.0001992,5]
[400366137,1767443444206,-1000.0,0.0001994,5]
[400366138,1767443444216,-1000.0,0.0001996,5]
[400366139,1767443444227,-4204.83754322,0.00019966,2]
[400366140,1767443444237,-500.0,0.00019973,2]
[400366141,1767443444247,-500.0,0.00019973,2]
[400366142,1767443444257,-500.0,0.00019973,2]
[400366143,1767443444268,-500.0,0.00019973,2]
[400366144,1767443444278,-500.0,0.00019973,2]
[400366145,1767443444288,-500.0,0.00019973,2]
[400366146,1767443444300,-500.0,0.00019973,2]
[400366147,1767443444310,-500.0,0.00019973,2]
[400366148,1767443444320,-500.0,0.00019973,2]
[400366149,1767443444330,-500.0,0.00019973,2]
[400366150,1767443444340,-500.0,0.00019973,2]
[400366151,1767443444351,-500.0,0.00019973,2]
[400366152,1767443444360,-500.0,0.00019973,2]
[400366153,1767443444370,-500.0,0.00019973,2]
[400366154,1767443444380,-500.0,0.00019973,2]
[400366155,1767443444391,-500.0,0.00019973,2]
[400366156,1767443444401,-484.05461293,0.00019973,2]
[400366157,1767443444412,-792.7,0.00019977,2]
[400366158,1767443444422,-1000.0,0.0001998,5]
[400366159,1767443444432,-8722.0,0.0002,2]
[400366160,1767443444442,-501.08861546,0.0002,2]
[400366161,1767443444452,-611.97330121,0.0002,2]
[400366162,1767443444462,-14537.40636724,0.0002,2]
[400366163,1767443444473,-5028.5998956,0.0002,7]
[400366164,1767443444483,-26577.92445215,0.0002,20]
[400366165,1767443444493,-371.10963317,0.0002,2]
[400366166,1767443444639,-475.69430622,0.0002,2]
[400366167,1767443444650,-587.76606138,0.0002,2]
[400366168,1767443444660,-23000.0,0.0002,2]
[400366169,1767443444671,-202.45431771,0.0002,2]
[400366170,1767443444681,-159.79665921,0.0002,2]
[400366171,1767443444690,-68166.77765661,0.0002,2]
[400366172,1767443444700,-250.0,0.0002,2]
[400366173,1767443444710,-250.0,0.0002,2]
[400366174,1767443444720,-250.0,0.0002,2]
[400366175,1767443444730,-250.0,0.0002,2]
[400366176,1767443444740,-250.0,0.0002,2]
[400366177,1767443444750,-250.0,0.0002,2]
[400366178,1767443444760,-250.0,0.0002,2]
[400366179,1767443444770,-250.0,0.0002,2]
[400366180,1767443444780,-206.2,0.0002,2]
[400366181,1767443444791,-12199.04326967,0.0002,2]
[400366182,1767443444801,-136070.59893153,0.0002,2]
[400366183,1767443444810,-222.256542,0.0002,2]
[400366184,1767443444820,-1000.0,0.0002,5]
[400366185,1767443444829,-250.0,0.0002,10]
[400366186,1767443444839,-300.0,0.0002,2]
[400366187,1767443444850,-151.54394486,0.0002,2]
[400366188,1767443444860,-2000.0,0.0002,7]
[400366189,1767443444870,-454.63183459,0.00020034,4]
[400366190,1767443444879,-454.62728746,0.00020034,4]
[400366191,1767443444889,-264.82787637,0.00020038,30]
[400366192,1767443444899,-250.0,0.000201,10]
[400366193,1767443444909,-433.8840454,0.0002013,2]
[400366194,1767443444919,-264.82787637,0.00020185,30]
[400366195,1767443444928,-1167.579961,0.00020187,2]
[400366196,1767443444939,-720.0,0.00020195,2]
[400366197,1767443444949,-253.628271,0.000202,10]
[400366198,1767443444958,-454.63183459,0.00020223,4]
[400366199,1767443444968,-454.62728746,0.00020223,4]
[400366200,1767443444977,-152.42,0.0002024,2]
[400366201,1767443444987,-152.39899385,0.0002028,2]
[400366202,1767443444997,-573.40051974,0.0002031,2]
[400366203,1767443445006,-264.82787637,0.00020331,30]
[400366204,1767443445015,-500.0,0.00020356,7]
[400366205,1767443445025,-205.0,0.00020384,3]
[400366206,1767443445036,-454.63183459,0.00020412,4]
[400366207,1767443445046,-454.62728746,0.00020412,4]
[400366208,1767443445056,-264.82787637,0.00020478,30]
[400366209,1767443445067,-792.7,0.00020483,2]
[400366210,1767443445077,-2715.16,0.000205,2]
[400366211,1767443445088,-253.93,0.000205,2]
[400366212,1767443445098,-2000.0,0.000205,7]
[400366213,1767443445110,-330.734172,0.00020548,2]
[400366214,1767443445119,-454.63183459,0.00020601,4]
[400366216,1767443445129,-454.62728746,0.00020601,4]
[400366218,1767443445139,-1387.41390941,0.0002061,2]
[400366219,1767443445148,-264.82787637,0.00020625,30]
[400366220,1767443445158,-264.82787637,0.00020771,30]
[400366221,1767443445168,-256.0729947,0.000209,2]
[400366222,1767443445178,-16856.74294802,0.0002091,2]
[400366223,1767443445188,-264.82787637,0.00020918,30]
[400366224,1767443445198,-792.7,0.00020989,2]
[400366225,1767443445207,-500.0,0.00021,7]
[400366226,1767443445218,-10000.0,0.00021,5]
[400366227,1767443445228,-276.951046,0.00021,2]
[400366228,1767443445238,-50000.0,0.00021,2]
[400366229,1767443445248,-3000.0,0.00021,2]
[400366230,1767443445258,-2000.0,0.00021,7]
[400366231,1767443445268,-3000.0,0.0002101,2]
[400366232,1767443445279,-3000.0,0.0002102,2]
[400366233,1767443445289,-3000.0,0.0002103,2]
[400366234,1767443445299,-3000.0,0.0002104,2]
[400366235,1767443445308,-3000.0,0.0002105,2]
[400366236,1767443445318,-3000.0,0.0002106,2]
[400366237,1767443445328,-264.82787637,0.00021064,30]
[400366238,1767443445338,-3000.0,0.0002107,2]
[400366239,1767443445348,-3000.0,0.0002108,2]
[400366240,1767443445357,-3000.0,0.0002109,2]
[400366241,1767443445367,-3000.0,0.000211,2]
[400366242,1767443445377,-3000.0,0.0002111,2]
[400366243,1767443445387,-3000.0,0.0002112,2]
[400366245,1767443445397,-3000.0,0.0002113,2]
[400366246,1767443445407,-3000.0,0.0002114,2]
[400366248,1767443445417,-3000.0,0.0002115,2]
[400366249,1767443445427,-3000.0,0.0002116,2]
[400366250,1767443445437,-3000.0,0.0002117,2]
[400366251,1767443445447,-3000.0,0.0002118,2]
[400366252,1767443445456,-3000.0,0.0002119,2]
[400366253,1767443445466,-250.16,0.000212,2]
[400366254,1767443445475,-4955.48733732,0.000212,2]
[400366255,1767443445704,-1733.72171815,0.000212,2]
[400366256,1767443445716,-15869.43451462,0.000212,2]
[400366257,1767443445908,-520.81,0.00019,2]
[400366258,1767443445918,-520.81,0.000194,2]
[400366259,1767443445927,-520.81,0.000197,2]
[400366260,1767443446047,-1751.83611231,0.000212,2]
[400366261,1767443446303,-3e-08,0.0002,2]
[400366262,1767443446509,-1000.0,0.00018,2]
[400366263,1767443446518,-929.9944682,0.000185,2]
[400366264,1767443446529,-70.0055318,0.000185,2]
[400366265,1767443446539,-229.9944682,0.00019,2]
[400366266,1767443446615,-770.0055318,0.00019,2]
[400366267,1767443446624,-1000.0,0.000195,2]
[400366268,1767443446633,-416.13285199,0.0002,2]
[400366269,1767443446644,-104.67714798,0.0002,2]
[400366270,1767443446654,-1000.0,0.0002,2]
[400366271,1767443446663,-520.81,0.000204,2]
[400366272,1767443446672,-520.81,0.000207,2]
[400366273,1767443446682,-520.81,0.00021,2]
[400366274,1767443446691,-3241.26920094,0.000212,2]
[400366275,1767443446767,-151.54965873,0.0001475,2]
[400366276,1767443446778,-7344.81854327,0.000212,2]
[400366277,1767443446794,-4689.27203357,0.000212,2]
[400366278,1767443476592,206.9,0.000125,2]
[400366279,1767443496505,212.18,9.643e-05,2]
[400366280,1767443497037,424.35,0.00010102,2]
[400366281,1767443497380,636.53,0.00010561,2]
[400366282,1767443497800,848.7,0.0001102,2]
[400366283,1767443498479,1060.88,0.00011479,2]
[400366284,1767443498947,1273.06,0.00011938,2]
[400366285,1767443499423,1485.23,0.00012398,2]
[400366286,1767443550288,246.72,0.000125,2]
[400366287,1767443563014,676.80348515,0.00011347,2]
[400366288,1767443564768,2704.50672665,0.00012161,2]
[400366289,1767443576660,224.1497882,0.00010039,2]
[400366290,1767443576686,48.9802118,0.00010039,2]
[400366291,1767443577163,409.69,0.00010495,2]
[400366292,1767443577765,546.26,0.00010951,2]
[400366293,1767443578250,682.82,0.00011407,2]
[400366294,1767443578755,819.38,0.00011864,2]
[400366295,1767443579239,955.95,0.0001232,2]
[400366296,1767443608307,207.7,0.000125,2]
[400366297,1767443609910,500.0,0.00028767,120]
[400366298,1767443612399,169.25880024,0.00024797,120]
[400366303,1767443641440,500.0,0.00028767,120]
[400366304,1767443655347,179.27,0.00010108,2]
[400366305,1767443655824,268.91,0.00010567,2]
[400366306,1767443656305,358.54,0.00011027,2]
[400366307,1767443656792,448.18,0.00011486,2]
[400366308,1767443657400,537.81,0.00011946,2]
[400366309,1767443657773,627.45,0.00012405,2]
[400366310,1767443658737,500.0,0.00028767,120]
[400366311,1767443668795,245.94,0.000125,2]
[400366312,1767443693513,2748.73291231,0.00012523,2]
[400366313,1767443704135,500.0,0.00012113,2]
[400366314,1767443705191,414.39687589,0.00012113,2]
[400366315,1767443705223,85.60312411,0.00012113,2]
[400366316,1767443705919,500.0,0.00012113,2]
[400366317,1767443705993,500.0,0.00012113,2]
[400366318,1767443706037,500.0,0.00012113,2]
[400366319,1767443706127,500.0,0.00012113,2]
[400366320,1767443706210,500.0,0.00012113,2]
[400366321,1767443706277,500.0,0.00012113,2]
[400366322,1767443706346,500.0,0.00012113,2]
[400366323,1767443706381,500.0,0.00012113,2]
[400366324,1767443706414,500.0,0.00012113,2]
[400366325,1767443706448,500.0,0.00012113,2]
[400366326,1767443706480,500.0,0.00012113,2]
[400366327,1767443706521,336.42473177,0.00012113,2]
[400366328,1767443706685,500.0,0.00012113,2]
[400366329,1767443706745,500.0,0.00012113,2]
[400366330,1767443706817,500.0,0.00012113,2]
[400366331,1767443706861,185.23788781,0.00012113,2]
[400366332,1767443706906,500.0,0.00012113,2]
[400366333,1767443706945,500.0,0.00012113,2]
[400366334,1767443707022,500.0,0.00012113,2]
[400366335,1767443707054,500.0,0.00012113,2]
[400366336,1767443711315,392.74425631,0.00012113,2]
[400366337,1767443711343,107.25574369,0.00012113,2]
[400366338,1767443711392,500.0,0.00012113,2]
[400366339,1767443711434,500.0,0.00012113,2]
[400366340,1767443711517,449.06740496,0.00012113,2]
[400366341,1767443715464,500.0,0.00028767,120]
[400366342,1767443721561,500.0,0.00012113,2]
[400366343,1767443721597,500.0,0.00012113,2]
[400366344,1767443721643,500.0,0.00012113,2]
[400366345,1767443721686,500.0,0.00012113,2]
[400366346,1767443721721,500.0,0.00012113,2]
[400366347,1767443721754,500.0,0.00012113,2]
[400366348,1767443721787,500.0,0.00012113,2]
[400366349,1767443721829,500.0,0.00012113,2]
[400366350,1767443721877,500.0,0.00012113,2]
[400366351,1767443721934,500.0,0.00012113,2]
[400366352,1767443721980,500.0,0.00012113,2]
[400366353,1767443722023,500.0,0.00012113,2]
[400366354,1767443722060,500.0,0.00012113,2]
[400366355,1767443722093,500.0,0.00012113,2]
[400366356,1767443722142,500.0,0.00012113,2]
[400366357,1767443722174,500.0,0.00012113,2]
[400366358,1767443722217,443.68685135,0.00012113,2]
[400366359,1767443722245,56.31314865,0.00012113,2]
[400366360,1767443722298,500.0,0.00012113,2]
[400366361,1767443722341,500.0,0.00012113,2]
[400366362,1767443722378,500.0,0.00012113,2]
[400366363,1767443722414,500.0,0.00012113,2]
[400366364,1767443722585,500.0,0.00012113,2]
[400366365,1767443722624,500.0,0.00012113,2]
[400366366,1767443722683,500.0,0.00012113,2]
[400366367,1767443722728,500.0,0.00012113,2]
[400366368,1767443722789,500.0,0.00012113,2]
[400366369,1767443728507,208.46,0.000125,2]
[400366370,1767443734258,176.5,0.00010535,2]
[400366371,1767443734725,235.33,0.00010993,2]
[400366372,1767443735291,294.17,0.00011451,2]
[400366373,1767443735818,353.0,0.00011909,2]
[400366374,1767443736298,411.84,0.00012367,2]
[400366375,1767443739540,500.0,0.00028767,120]
[400366376,1767443789868,247.09,0.000125,2]
[400366377,1767443810888,194.86,0.0001092,2]
[400366378,1767443811361,243.58,0.00011374,2]
[400366379,1767443811827,292.29,0.00011829,2]
[400366380,1767443812260,341.01,0.00012284,2]
[400366381,1767443849348,209.23,0.000125,2]
[400366382,1767443879894,314.53,8.238e-05,2]
[400366383,1767443880295,314.53,8.238e-05,2]
[400366384,1767443880408,314.51,8.238e-05,2]